bitfinex/quotes_ETHUSD_20251021
["timestamp","ask_amount","ask_price","bid_price","bid_amount"]
[1761039816149,2.58251123,3872.2,3872.1,0.6655]
[1761039819439,2.58351123,3872.2,3872.1,0.6655]
[1761039820949,8.35729745,3872.2,3872.1,0.6655]
[1761039822848,4.31151123,3872.2,3872.1,0.6655]
[1761039823437,0.001,3872.2,3872.1,0.6655]
[1761039823834,1.729,3872.2,3872.1,0.6655]
[1761039824032,4.31151123,3872.2,3872.1,0.6655]
[1761039827552,10.26828018,3872.2,3872.1,0.002]
[1761039828750,9.11619418,3872.2,3872.1,0.002]
[1761039829270,8.44025918,3872.2,3872.1,0.002]
[1761039829669,6.70969323,3872.2,3872.1,0.4517]
[1761039829960,4.31151123,3872.2,3872.1,0.6655]
[1761039830866,4.31151123,3872.2,3872.1,0.002]
[1761039831769,4.81839123,3872.2,3872.1,0.002]
[1761039832278,4.81839123,3872.2,3872.1,0.4517]
[1761039832643,4.31151123,3872.2,3872.1,0.4517]
[1761039832842,4.31151123,3872.2,3872.1,0.6655]
[1761039837372,4.28551123,3872.2,3872.1,0.6655]
[1761039838476,4.28651123,3872.2,3872.1,0.6655]
[1761039838879,2.58351123,3872.2,3872.1,0.6655]
[1761039839076,0.001,3872.2,3872.1,0.7943]
[1761039839274,0.001,3872.2,3872.1,3.37687792]
[1761039839577,0.001,3872.2,3872.1,1.41886201]
[1761039839778,0.001,3872.2,3872.1,0.82012577]
[1761039840377,0.001,3872.2,3872.1,0.7943]
[1761039840772,0.001,3872.2,3872.1,3.37687792]
[1761039840951,0.001,3872.2,3872.1,3.40270369]
[1761039841248,0.001,3872.2,3872.1,4.5788235]
[1761039842598,0.001,3872.2,3872.1,4.4500235]
[1761039844781,0.001,3872.2,3872.1,4.42419773]
[1761039845385,0.001,3872.2,3872.1,3.24807792]
[1761039845671,0.001,3872.2,3872.1,0.6655]
[1761039845873,0.001,3872.2,3872.1,0.2158]
[1761039846174,0.001,3872.2,3872.1,0.002]
[1761039846175,8.35729745,3872.2,3872.1,0.002]
[1761039847255,0.001,3872.2,3872.1,0.7084]
[1761039852588,0.001,3872.2,3872.1,3.74908721]
[1761039858454,0.001,3872.2,3872.1,3.77491298]
[1761039858880,0.001,3872.2,3872.1,3.74908721]
[1761039859082,0.001,3872.2,3872.1,3.77491298]
[1761039859866,0.001,3872.2,3872.1,5.50171298]
[1761039860089,0.001,3872.2,3872.1,5.47588721]
[1761039862889,0.001,3872.2,3872.1,3.74788721]
[1761039863096,0.001,3872.2,3872.1,3.77371298]
[1761039863985,0.001,3872.2,3872.1,3.74788721]
[1761039866310,5.75825817,3873.1,3872.6,2.58224448]
[1761039866813,5.75825817,3873.1,3872.6,3.04374448]
[1761039867115,5.75825817,3873.1,3872.7,0.4615]
[1761039869614,1.729,3873.4,3872.7,0.4615]
[1761039869913,4.3107354,3873.4,3872.8,2.58206762]
[1761039870415,2.58186246,3873.2,3872.7,0.4615]
[1761039870616,2.58181188,3873.3,3872.7,0.4615]
[1761039870807,1.729,3873.4,3872.7,0.4615]
[1761039871015,2.58183804,3873.3,3872.7,0.4615]
[1761039872085,4.31075197,3873.4,3872.7,0.4615]
[1761039872719,2.58181962,3873.3,3872.7,0.4615]
[1761039872916,1.729,3873.4,3872.8,2.58207092]
[1761039873222,1.729,3873.4,3872.9,2.6078512]
[1761039873521,0.001,3873.4,3873.0,2.58193812]
[1761039873711,0.001,3873.4,3873.1,0.45561911]
[1761039874593,0.001,3873.4,3873.1,0.02581911]
[1761039874799,0.001,3873.4,3873.0,0.02581977]
[1761039875200,0.001,3873.4,3872.9,3.01182944]
[1761039875395,0.001,3873.4,3873.0,0.4298]
[1761039875602,0.001,3873.4,3873.0,3.01177499]
[1761039876125,1.728,3873.3,3872.8,2.58208452]
[1761039876427,1.728,3873.3,3873.2,0.1288]
[1761039879116,2.58177781,3873.3,3873.2,0.1288]
[1761039880013,4.31073283,3873.4,3873.2,0.1288]
[1761039882419,0.001,3873.4,3873.2,0.1288]
[1761039883092,0.001,3873.4,3873.2,0.5586]
[1761039884228,0.001,3873.4,3873.2,0.1288]
[1761039886525,0.001,3873.4,3873.2,0.5586]
[1761039890026,0.001,3873.4,3873.2,0.1288]
[1761039890329,0.001,3873.4,3873.3,0.4298]
[1761039891701,0.001,3873.4,3873.3,3.34926889]
[1761039891928,0.001,3873.4,3873.3,3.50388666]
[1761039893112,0.001,3873.4,3873.3,3.47806889]
[1761039894231,0.001,3873.4,3873.3,0.1288]
[1761039895704,0.001,3873.4,3873.3,2.71057781]
[1761039896604,0.001,3873.4,3873.3,0.1288]
[1761039897716,0.001,3873.4,3873.3,0.5586]
[1761039899415,0.001,3873.4,3873.3,2.71057781]
[1761039899618,0.001,3873.4,3873.3,3.30645034]
[1761039900129,0.001,3873.4,3873.3,3.73625034]
[1761039900331,0.001,3873.4,3873.3,0.72467253]
[1761039901237,0.001,3873.4,3873.3,3.30645034]
[1761039901535,2.58271115,3873.4,3873.1,0.002]
[1761039901736,2.58181265,3873.3,3873.1,0.002]
[1761039901938,0.001,3873.4,3873.1,0.002]
[1761039901939,0.1008,3873.4,3873.1,0.002]
[1761039902137,0.001,3873.4,3873.1,0.002]
[1761039902723,0.001,3873.4,3873.1,0.2253]
[1761039903021,0.001,3873.4,3873.1,3.28100885]
[1761039903433,0.001,3873.4,3873.2,0.4738]
[1761039903608,0.001,3873.4,3873.3,2.58177781]
[1761039903824,0.001,3873.4,3873.3,3.05557781]
[1761039904028,0.001,3873.4,3873.3,0.4738]
[1761039904437,0.001,3873.4,3873.3,3.05557781]
[1761039904641,0.001,3873.4,3873.3,3.70306695]
[1761039907966,0.001,3873.4,3873.3,3.70196695]
[1761039910092,0.001,3873.4,3873.3,3.72778472]
[1761039910257,0.001,3873.4,3873.3,3.70196695]
[1761039910466,0.001,3873.4,3873.3,3.72778472]
[1761039911377,0.001,3873.4,3873.3,3.85658472]
[1761039915485,0.001,3873.4,3873.3,3.83076695]
[1761039916083,0.001,3873.4,3873.3,3.72778472]
[1761039916271,0.001,3873.4,3873.3,3.85658472]
[1761039918186,0.001,3873.4,3873.3,3.83076695]
[1761039918990,0.001,3873.4,3873.3,3.85658472]
[1761039919175,0.001,3873.4,3873.3,3.83076695]
[1761039919490,0.001,3873.4,3873.3,3.93425514]
[1761039919788,0.001,3873.4,3873.3,3.96007291]
[1761039920690,0.001,3873.4,3873.3,3.93425514]
[1761039920984,0.001,3873.4,3873.3,3.96007291]
[1761039922712,0.001,3873.4,3873.3,3.93425514]
[1761039923298,0.001,3873.4,3873.3,3.96007291]
[1761039924118,0.001,3873.4,3873.3,3.93425514]
[1761039924493,0.001,3873.4,3873.3,10.42490314]
[1761039925401,0.001,3873.4,3873.3,10.93378314]
[1761039927596,0.001,3873.4,3873.3,12.66178314]
[1761039927803,0.001,3873.7,3873.3,12.66178314]
[1761039927804,0.001,3873.8,3873.7,2.58151121]
[1761039928108,0.001,3873.8,3873.7,10.04632004]
[1761039928305,0.001,3873.8,3873.7,10.47120493]
[1761039928523,0.001,3873.8,3873.7,10.57466769]
[1761039930241,0.001,3873.8,3873.7,4.08401969]
[1761039930450,0.001,3873.8,3873.7,4.1098348]
[1761039930821,0.001,3873.8,3873.7,4.08401969]
[1761039937829,0.001,3873.8,3873.7,4.59089969]
[1761039938327,0.001,3873.8,3873.7,6.31889969]
[1761039938555,0.001,3873.8,3873.7,6.57769969]
[1761039938855,1e-08,3874.2,3874.1,2.58124467]
[1761039939041,1e-08,3874.2,3874.1,11.70676868]
[1761039939240,1e-08,3874.2,3874.1,12.15115624]
[1761039939440,1e-08,3874.2,3874.1,12.65803624]
[1761039939745,1e-08,3874.2,3874.1,12.76148696]
[1761039944538,1e-08,3874.2,3874.1,13.02028696]
[1761039944734,1e-08,3874.2,3874.1,12.29087136]
[1761039947276,1e-08,3874.2,3874.1,12.81874908]
[1761039956987,1e-08,3874.2,3874.1,12.29087136]
[1761039959715,1e-08,3874.2,3874.1,5.05775896]
[1761039960302,1e-08,3874.2,3874.1,10.81899136]
[1761039961322,1e-08,3874.2,3874.1,10.82099136]
[1761039963306,1e-08,3874.2,3874.1,11.28209136]
[1761039964143,1e-08,3874.2,3874.1,11.17864064]
[1761039964936,1e-08,3874.2,3874.1,11.68552064]
[1761039969338,1e-08,3874.2,3874.1,11.78896601]
[1761039971714,0.1897,3875.7,3875.5,2.58031221]
[1761039971912,0.0881,3875.7,3875.5,2.60611533]
[1761039972114,0.0881,3875.7,3875.5,8.36734773]
[1761039972342,0.1026,3875.6,3875.5,8.34154461]
[1761039973363,0.001,3875.6,3875.5,8.84842461]
[1761039973652,0.001,3875.6,3875.5,9.99130617]
[1761039973945,0.001,3875.6,3875.5,11.82373951]
[1761039974342,0.001,3875.6,3875.5,12.28483951]
[1761039977766,0.001,3875.6,3875.5,11.82373951]
[1761039977962,0.001,3875.6,3875.5,11.71930617]
[1761039980640,0.001,3875.6,3875.5,12.17760617]
[1761039981766,0.001,3875.6,3875.5,12.30640617]
[1761039982762,0.001,3875.6,3875.5,11.84810617]
[1761039984143,0.1023,3875.6,3875.5,11.34122617]
[1761039984838,0.001,3875.6,3875.5,11.34122617]
[1761039988283,0.001,3875.6,3875.5,11.79952617]
[1761039988848,0.001,3875.6,3875.5,11.34122617]
[1761039991478,0.1023,3875.6,3875.5,11.34122617]
[1761039992687,0.1023,3875.6,3875.5,3.85199377]
[1761039992898,0.1023,3875.6,3875.5,2.70911221]
[1761040001697,0.001,3875.6,3875.5,2.70911221]
[1761040002669,0.001,3875.6,3875.5,4.91891533]
[1761040004206,0.001,3875.6,3875.5,5.42579533]
[1761040004375,0.001,3875.6,3875.5,5.39999221]
[1761040004701,0.001,3875.6,3875.5,6.77415377]
[1761040004901,0.001,3875.6,3875.5,9.49415377]
[1761040005100,0.001,3875.6,3875.5,6.77415377]
[1761040006702,0.001,3875.6,3875.5,13.68296167]
[1761040010636,0.001,3875.6,3875.5,13.17608167]
[1761040011827,0.001,3875.6,3875.5,5.81127377]
[1761040021259,0.001,3875.6,3875.5,4.08327377]
[1761040021424,0.1023,3875.6,3875.5,2.70911221]
[1761040022371,0.1023,3875.6,3875.5,0.1288]
[1761040022524,0.1023,3875.6,3875.5,2.70911221]
[1761040022724,0.001,3875.6,3875.5,2.70911221]
[1761040022920,0.1023,3875.6,3875.5,2.70911221]
[1761040023744,0.001,3875.6,3875.5,2.70911221]
[1761040023946,0.001,3875.6,3875.5,3.24064696]
[1761040024161,0.001,3875.6,3875.5,3.72815008]
[1761040024358,0.001,3875.6,3875.5,3.70234696]
[1761040024560,0.001,3875.6,3875.5,3.24064696]
[1761040024772,0.001,3875.6,3875.5,2.70911221]
[1761040026457,0.1023,3875.6,3875.5,2.70911221]
[1761040028566,0.001,3875.6,3875.5,2.70911221]
[1761040028769,0.001,3875.6,3875.5,2.73491533]
[1761040029080,0.001,3875.6,3875.5,2.70911221]
[1761040029286,0.001,3875.6,3875.5,4.23315653]
[1761040029778,0.001,3875.6,3875.5,4.25895965]
[1761040032877,0.001,3875.6,3875.5,4.69485653]
[1761040033483,0.001,3875.6,3875.5,4.72065965]
[1761040033650,0.001,3875.6,3875.5,4.69485653]
[1761040033980,0.001,3875.6,3875.5,4.72065965]
[1761040034979,0.001,3875.6,3875.5,2.58031221]
[1761040035182,0.1023,3875.6,3875.5,2.58031221]
[1761040036289,0.1023,3875.6,3875.2,2.58050513]
[1761040036483,0.1023,3875.6,3875.0,2.58260389]
[1761040036484,0.1023,3875.6,3875.0,0.002]
[1761040036784,0.1023,3875.6,3875.4,2.58035285]
[1761040038185,0.1023,3875.6,3875.3,2.58039104]
[1761040038485,0.1023,3875.6,3875.2,2.58049144]
[1761040038675,0.1023,3875.6,3875.3,2.58042615]
[1761040038879,0.1023,3875.6,3875.4,2.58036209]
[1761040039785,0.1023,3875.6,3875.3,2.5804186]
[1761040041996,0.1023,3875.6,3875.4,2.58037806]
[1761040042502,0.1013,3875.5,3875.0,0.002]
[1761040042662,1.728,3875.3,3875.0,0.002]
[1761040043193,0.1013,3875.2,3875.0,0.002]
[1761040044795,2.68185741,3875.2,3875.0,0.002]
[1761040045002,2.68185741,3875.2,3875.1,0.1288]
[1761040045170,2.68185741,3875.2,3875.0,0.002]
[1761040045171,2.58057856,3875.1,3875.0,0.002]
[1761040045371,4.30857856,3875.1,3875.0,0.002]
[1761040045698,4.91675856,3875.1,3875.0,0.002]
[1761040048699,4.81545856,3875.1,3875.0,0.002]
[1761040048902,1.728,3875.1,3875.0,0.002]
[1761040049197,0.001,3875.3,3875.0,0.002]
[1761040049198,0.001,3875.3,3875.2,2.58051197]
[1761040049407,0.001,3875.3,3875.2,3.61335166]
[1761040049605,0.001,3875.3,3875.2,3.71634655]
[1761040050204,0.001,3875.3,3875.2,3.28194655]
[1761040051107,0.001,3875.3,3875.2,3.72384655]
[1761040051482,0.001,3875.3,3875.2,3.74965166]
[1761040051687,0.001,3875.3,3875.2,3.72384655]
[1761040051882,0.001,3875.3,3875.2,3.74965166]
[1761040052409,0.001,3875.3,3875.2,3.72384655]
[1761040057130,0.001,3875.3,3875.2,3.74965166]
[1761040058033,0.001,3875.3,3875.2,3.72384655]
[1761040063233,0.001,3875.3,3875.2,3.28194655]
[1761040063439,0.001,3875.3,3875.2,3.72384655]
[1761040063601,0.001,3875.3,3875.2,3.28194655]
[1761040067339,0.001,3875.3,3875.2,3.72384655]
[1761040068730,0.001,3875.3,3875.2,5.45184655]
[1761040069144,0.001,3875.3,3875.2,5.00994655]
[1761040069349,0.001,3875.3,3875.2,5.45184655]
[1761040073953,0.001,3875.3,3875.2,3.72384655]
[1761040074548,0.001,3875.3,3875.2,3.74965166]
[1761040074943,0.001,3875.3,3875.2,3.72384655]
[1761040076154,0.001,3875.3,3875.2,3.74965166]
[1761040080759,0.001,3875.3,3875.2,3.30775166]
[1761040080949,0.001,3875.3,3875.2,3.77885166]
[1761040081863,0.001,3875.3,3875.2,3.75304655]
[1761040082063,0.001,3875.3,3875.2,3.28194655]
[1761040087071,0.001,3875.3,3875.2,2.70931197]
[1761040087549,0.1023,3875.3,3875.2,0.1288]
[1761040087754,0.1023,3875.3,3875.0,0.002]
[1761040087755,2.68279479,3875.3,3875.0,0.002]
[1761040088159,0.1013,3875.2,3875.0,0.002]
[1761040088476,2.68181412,3875.2,3875.0,0.002]
[1761040088986,0.1013,3875.1,3875.0,0.002]
[1761040089149,2.68187856,3875.1,3875.0,0.002]
[1761040089586,0.1013,3875.1,3875.0,0.002]
[1761040090455,2.68187856,3875.1,3875.0,0.002]
[1761040091177,0.1013,3875.1,3875.0,0.002]
[1761040091483,0.001,3875.3,3875.0,2.58260032]
[1761040091685,0.001,3875.3,3875.1,2.60638251]
[1761040091851,0.001,3875.3,3875.1,2.58057673]
[1761040092978,0.001,3875.3,3875.0,2.58261995]
[1761040093381,0.001,3875.3,3875.0,0.002]
[1761040093580,0.1023,3875.3,3875.0,2.58262796]
[1761040093780,0.1023,3875.3,3875.1,2.58055944]
[1761040094159,0.001,3875.3,3875.1,2.58055944]
[1761040095147,0.1023,3875.3,3875.0,0.002]
[1761040095568,0.001,3875.3,3875.0,0.002]
[1761040095778,0.001,3875.3,3875.1,2.58053513]
[1761040097577,0.001,3875.3,3875.0,0.002]
[1761040097777,0.1023,3875.3,3875.2,0.1288]
[1761040101181,0.001,3875.3,3875.2,0.1288]
[1761040102402,0.1023,3875.3,3875.2,0.1288]
[1761040105994,2.68274538,3875.3,3875.2,0.1288]
[1761040121148,2.58057856,3875.1,3875.0,0.002]
[1761040121459,10.06947233,3875.1,3875.0,0.002]
[1761040121644,10.17077233,3875.1,3875.0,0.002]
[1761040126943,4.30857856,3875.1,3875.0,0.002]
[1761040127344,4.40987856,3875.1,3875.0,0.002]
[1761040130072,4.30857856,3875.1,3875.0,0.002]
[1761040130568,4.40987856,3875.1,3875.0,0.002]
[1761040131174,4.53867856,3875.1,3875.0,0.002]
[1761040136977,4.43737856,3875.1,3875.0,0.002]
[1761040137181,4.30857856,3875.1,3875.0,0.002]
[1761040137356,1.728,3875.1,3875.0,0.4506]
[1761040137557,0.001,3875.3,3875.0,0.5794]
[1761040137784,0.001,3875.3,3875.0,3.16002845]
[1761040137979,0.001,3875.3,3875.1,0.76718362]
[1761040138387,0.001,3875.3,3875.2,0.4486]
[1761040142095,0.001,3875.3,3875.0,0.1308]
[1761040142271,2.58051853,3875.2,3875.0,0.1308]
[1761040142597,0.001,3875.3,3875.0,0.1308]
[1761040142598,2.58057856,3875.1,3875.0,0.1308]
[1761040143161,2.68187856,3875.1,3875.0,0.002]
[1761040143492,4.40987856,3875.1,3875.0,0.002]
[1761040144765,4.30857856,3875.1,3875.0,0.002]
[1761040145789,4.40987856,3875.1,3875.0,0.002]
[1761040149005,4.41087856,3875.1,3875.0,0.002]
[1761040150024,4.30957856,3875.1,3875.0,0.002]
[1761040151024,4.41087856,3875.1,3875.0,0.002]
[1761040152225,4.81563577,3875.1,3875.0,0.002]
[1761040152429,4.41087856,3875.1,3875.0,0.002]
[1761040152627,8.70032556,3875.1,3875.0,0.002]
[1761040152924,9.9196097,3875.1,3875.0,0.002]
[1761040153624,25.4937117,3875.1,3875.0,0.002]
[1761040153928,20.8337297,3875.1,3875.0,0.002]
[1761040154698,23.1557997,3875.1,3875.0,0.002]
[1761040155415,23.56060535,3875.1,3875.0,0.002]
[1761040155735,22.8038857,3875.1,3875.0,0.002]
[1761040156731,22.7818557,3875.1,3875.0,0.002]
[1761040157446,23.4600297,3875.1,3875.0,0.002]
[1761040157643,17.8609377,3875.1,3875.0,0.002]
[1761040157942,21.6842877,3875.1,3875.0,0.002]
[1761040158535,22.08908233,3875.1,3875.0,0.002]
[1761040158729,21.25987633,3875.1,3875.0,0.002]
[1761040158925,21.71967633,3875.1,3875.0,0.002]
[1761040159124,21.85341033,3875.1,3875.0,0.002]
[1761040160130,22.55304933,3875.1,3875.0,0.002]
[1761040160541,21.88481233,3875.1,3875.0,0.002]
[1761040161151,21.88618633,3875.1,3875.0,0.002]
[1761040161341,21.15442333,3875.1,3875.0,0.002]
[1761040161546,20.35151333,3875.1,3875.0,0.002]
[1761040162155,21.35151333,3875.1,3875.0,0.002]
[1761040162850,21.58639279,3875.1,3875.0,0.002]
[1761040163027,15.68538133,3875.1,3875.0,0.002]
[1761040163225,4.71437319,3875.1,3875.0,0.002]
[1761040163429,4.71437319,3875.1,3875.0,0.4618]
[1761040163827,4.30957856,3875.1,3875.0,0.4618]
[1761040165726,4.25957856,3875.1,3875.0,0.4618]
[1761040167268,0.001,3875.1,3875.0,0.4618]
[1761040168128,2.58157856,3875.1,3875.0,0.4618]
[1761040169233,2.58157856,3875.1,3875.0,0.002]
[1761040171033,2.58157856,3875.1,3875.0,0.4369]
[1761040171239,0.001,3875.1,3875.0,0.4369]
[1761040172133,2.58157856,3875.1,3875.0,0.4369]
[1761040172346,2.58157856,3875.1,3875.0,0.002]
[1761040172756,4.30957856,3875.1,3875.0,0.002]
[1761040178059,4.30957856,3875.1,3875.0,0.4369]
[1761040179031,1.729,3875.1,3875.0,0.4369]
[1761040179769,4.30957856,3875.1,3875.0,0.4369]
[1761040183850,4.30957856,3875.1,3875.0,0.002]
[1761040186573,1.729,3875.1,3875.0,0.002]
[1761040186754,4.30957856,3875.1,3875.0,0.4369]
[1761040189260,0.001,3875.1,3875.0,0.4369]
[1761040189644,0.001,3875.1,3875.0,3.59026396]
[1761040192391,0.001,3875.1,3875.0,3.71906396]
[1761040192982,0.001,3875.1,3875.0,3.82252244]
[1761040193182,0.001,3875.1,3875.0,1.24187728]
[1761040193561,0.001,3875.1,3875.0,3.82252244]
[1761040200293,0.001,3875.1,3875.0,1.1384188]
[1761040200655,0.001,3875.1,3875.0,0.002]
[1761040200876,4.30957856,3875.1,3875.0,0.002]
[1761040201209,4.41087856,3875.1,3875.0,0.002]
[1761040201504,4.30957856,3875.1,3875.0,0.002]
[1761040201824,10.07229618,3875.1,3875.0,0.002]
[1761040201973,10.17359618,3875.1,3875.0,0.002]
[1761040202816,10.68047618,3875.1,3875.0,0.002]
[1761040203108,19.04377532,3875.1,3875.0,0.002]
[1761040203422,19.79664732,3875.1,3875.0,0.002]
[1761040203769,19.39186832,3875.1,3875.0,0.002]
[1761040203970,21.38404032,3875.1,3875.0,0.002]
[1761040204171,20.49560832,3875.1,3875.0,0.002]
[1761040205016,11.39288032,3875.1,3875.0,0.002]
[1761040205190,24.47251832,3875.1,3875.0,0.002]
[1761040206008,11.39288032,3875.1,3875.0,0.002]
[1761040206196,27.44276132,3875.1,3875.0,0.002]
[1761040206510,25.56155132,3875.1,3875.0,0.002]
[1761040207082,27.34042032,3875.1,3875.0,0.002]
[1761040207396,26.50926232,3875.1,3875.0,0.002]
[1761040207797,30.07757032,3875.1,3875.0,0.002]
[1761040208003,28.77125132,3875.1,3875.0,0.002]
[1761040208180,27.87475344,3875.1,3875.0,0.002]
[1761040209217,27.98084544,3875.1,3875.0,0.002]
[1761040209405,22.03263144,3875.1,3875.0,0.002]
[1761040210297,29.22584444,3875.1,3875.0,0.002]
[1761040211225,25.99894644,3875.1,3875.0,0.002]
[1761040212333,17.92638244,3875.1,3875.0,0.002]
[1761040212549,39.87432644,3875.1,3875.0,0.002]
[1761040212896,26.76600144,3875.1,3875.0,0.002]
[1761040213218,17.92638244,3875.1,3875.0,0.002]
[1761040213527,22.28568144,3875.1,3875.0,0.002]
[1761040214532,20.12423718,3875.1,3875.0,0.002]
[1761040215195,19.15360518,3875.1,3875.0,0.002]
[1761040216008,19.17149218,3875.1,3875.0,0.002]
[1761040216630,25.22141918,3875.1,3875.0,0.002]
[1761040216944,21.86082618,3875.1,3875.0,0.002]
[1761040217132,17.00917618,3875.1,3875.0,0.002]
[1761040217334,17.00917618,3875.1,3875.0,0.4299]
[1761040218006,17.00917618,3875.1,3875.0,0.002]
[1761040219416,8.159,3875.1,3875.0,0.002]
[1761040219639,1.729,3875.1,3875.0,0.448]
[1761040220345,0.001,3875.1,3875.0,0.448]
[1761040220664,0.001,3875.1,3875.0,3.15744516]
[1761040225727,0.001,3875.1,3875.0,3.18325161]
[1761040226280,0.001,3875.1,3875.0,4.33592593]
[1761040226553,0.001,3875.1,3875.0,4.31011948]
[1761040226757,0.001,3875.1,3875.0,4.41357047]
[1761040235272,0.001,3875.1,3875.0,4.43937692]
[1761040236374,0.001,3875.1,3875.0,4.41357047]
[1761040237958,0.001,3875.1,3875.0,4.43937692]
[1761040239174,0.001,3875.1,3875.0,10.20209454]
[1761040239496,0.001,3875.1,3875.0,10.17628809]
[1761040240011,0.001,3875.1,3875.0,12.41116809]
[1761040244968,0.001,3875.1,3875.0,11.90428809]
[1761040245904,0.001,3875.1,3875.0,12.41116809]
[1761040248428,0.001,3875.1,3875.0,11.90428809]
[1761040252734,0.001,3875.1,3875.0,13.55926841]
[1761040258134,1e-08,3875.5,3875.4,3.08725879]
[1761040258441,1e-08,3875.5,3875.4,13.06441618]
[1761040258645,1e-08,3875.5,3875.4,13.62171618]
[1761040258811,1e-08,3875.5,3875.4,13.72512411]
[1761040262275,1e-08,3875.5,3875.4,6.32662617]
[1761040264369,1e-08,3875.5,3875.4,6.22321824]
[1761040265477,1e-08,3875.5,3875.4,5.77551824]
[1761040265978,1e-08,3875.5,3875.4,6.22321824]
[1761040266612,1e-08,3875.5,3875.4,4.04751824]
[1761040266782,1e-08,3875.5,3875.4,2.70917879]
[1761040267482,0.09980001,3875.5,3875.4,2.70917879]
[1761040267698,0.09980001,3875.5,3875.4,0.1288]
[1761040267843,0.09980001,3875.5,3875.4,2.70917879]
[1761040270676,1e-08,3875.5,3875.4,2.58037879]
[1761040270876,1e-08,3875.5,3875.4,2.70917879]
[1761040272797,0.09980001,3875.5,3875.4,2.70917879]
[1761040274067,1e-08,3875.5,3875.4,2.70917879]
[1761040282195,0.09980001,3875.5,3875.4,2.70917879]
[1761040284118,0.09980001,3875.5,3875.4,2.71117879]
[1761040288322,1e-08,3875.5,3875.4,2.71117879]
[1761040298031,1e-08,3875.5,3875.4,0.002]
[1761040298032,7.33027822,3875.5,3875.4,0.002]
[1761040298238,26.61191053,3875.5,3875.4,0.001]
[1761040298395,26.98528821,3875.5,3875.4,0.001]
[1761040298601,23.65182104,3875.5,3875.4,0.001]
[1761040298997,23.04425504,3875.5,3875.4,0.001]
[1761040299311,24.25925504,3875.5,3875.4,0.001]
[1761040299511,23.02483304,3875.5,3875.4,0.001]
[1761040300206,5.70752304,3875.5,3875.4,0.001]
[1761040300414,5.70752304,3875.5,3874.1,0.002]
[1761040300415,24.72140942,3874.3,3874.1,0.002]
[1761040300615,28.9045485,3874.3,3874.1,0.002]
[1761040300906,25.5061735,3874.3,3874.1,0.002]
[1761040301123,25.60969732,3874.3,3874.1,0.002]
[1761040301436,30.17443932,3874.3,3874.1,0.002]
[1761040301732,29.85856317,3874.3,3874.1,0.002]
[1761040302325,32.33264117,3874.3,3874.1,0.002]
[1761040302633,32.45915533,3874.3,3874.1,0.002]
[1761040303005,30.67415633,3874.3,3874.1,0.002]
[1761040303432,13.14982433,3874.3,3874.1,0.002]
[1761040303728,29.49640833,3874.3,3874.1,0.002]
[1761040303902,26.11821633,3874.3,3874.1,0.002]
[1761040304333,13.14982433,3874.3,3874.1,0.002]
[1761040304536,28.71690933,3874.3,3874.1,0.002]
[1761040304916,28.71690933,3874.3,3873.6,0.002]
[1761040304917,39.99920915,3873.7,3873.6,1e-08]
[1761040305127,4.81659115,3873.4,3873.1,0.002]
[1761040305430,29.4811054,3873.2,3873.1,0.002]
[1761040305636,29.33503554,3873.2,3873.1,0.002]
[1761040305830,29.43403554,3873.2,3873.1,0.002]
[1761040306199,29.53758937,3873.2,3873.1,0.002]
[1761040306529,24.51691937,3873.2,3873.1,0.002]
[1761040307434,13.14821543,3873.2,3873.1,0.002]
[1761040307615,27.40058237,3873.2,3873.1,0.002]
[1761040308234,24.15902937,3873.2,3873.1,0.002]
[1761040308602,29.80269837,3873.2,3873.1,0.002]
[1761040309131,28.07862837,3873.2,3873.1,0.002]
[1761040309347,23.56045837,3873.2,3873.1,0.002]
[1761040309653,23.56045737,3873.2,3873.1,0.002]
[1761040310005,2.74345415,3873.2,3873.1,0.002]
[1761040310202,8.022937,3873.9,3873.1,0.002]
[1761040310503,0.099,3874.0,3873.1,0.002]
[1761040310504,0.10353132,3873.6,3873.1,0.002]
[1761040310707,2.58155509,3873.7,3873.1,0.002]
[1761040310922,0.099,3874.0,3873.1,0.231]
[1761040311235,7.35515946,3873.2,3873.1,0.002]
[1761040311418,14.71864746,3873.2,3873.1,0.002]
[1761040311747,11.70474846,3873.2,3873.1,0.002]
[1761040311902,12.45071032,3873.2,3873.1,0.002]
[1761040312110,12.1492637,3873.2,3873.1,0.002]
[1761040312303,21.4155047,3873.2,3873.1,0.002]
[1761040313005,27.8455047,3873.2,3873.1,0.002]
[1761040313418,21.5371427,3873.2,3873.1,0.002]
[1761040314343,5.7083327,3873.2,3873.1,0.002]
[1761040314548,25.5825297,3873.2,3873.1,0.002]
[1761040314866,30.8903727,3873.2,3873.1,0.002]
[1761040315164,30.95585241,3873.2,3873.1,0.002]
[1761040315474,30.92172641,3873.2,3873.1,0.002]
[1761040316176,28.43947441,3873.2,3873.1,0.002]
[1761040316458,38.08031941,3873.2,3873.1,0.002]
[1761040316842,37.08031941,3873.2,3873.1,0.002]
[1761040317575,37.51552341,3873.2,3873.1,0.002]
[1761040318239,32.78965341,3873.2,3873.1,0.002]
[1761040318578,35.79216941,3873.2,3873.1,0.002]
[1761040318977,7.09296427,3873.2,3873.1,0.002]
[1761040319266,14.59469427,3873.2,3873.1,0.002]
[1761040319466,10.48860817,3873.2,3873.1,0.002]
[1761040319669,14.08383546,3873.2,3873.1,0.002]
[1761040320166,10.08357446,3873.2,3873.1,0.002]
[1761040320346,23.51370146,3873.2,3873.1,0.002]